bitfinex/quotes_SOLUSD_20220109
["timestamp","ask_amount","ask_price","bid_price","bid_amount"]
[1641757602313,10.3335,145.22,145.14,1.722]
[1641757602510,10.3335,145.22,145.14,1.972]
[1641757602913,10.3335,145.22,145.14,1.722]
[1641757603115,10.3335,145.22,145.14,26.98822769]
[1641757603412,10.3335,145.22,145.15,1.722]
[1641757603612,10.3335,145.22,145.13,12.0538]
[1641757603811,77.024,145.24,145.13,12.0538]
[1641757604011,9.94,145.27,145.16,1.78082586]
[1641757604214,74.4769,145.28,145.17,1.721]
[1641757604612,74.4769,145.28,145.18,10.5793]
[1641757604812,27.56700756,145.27,145.18,10.5793]
[1641757605212,27.56700756,145.27,145.18,12.36012586]
[1641757606317,0.04,145.2,145.18,12.36012586]
[1641757606520,0.04,145.2,145.19,1.721]
[1641757606718,0.04,145.2,145.19,4.75319995]
[1641757606917,0.04,145.2,145.19,5.00319995]
[1641757607117,0.04,145.2,145.19,4.75319995]
[1641757607318,0.04,145.2,145.19,15.08179995]
[1641757607517,84.8059,145.28,145.19,15.08179995]
[1641757607518,74.5169,145.28,145.19,15.59179995]
[1641757607719,74.5169,145.28,145.19,15.08179995]
[1641757607918,74.5169,145.28,145.2,0.25]
[1641757608118,74.5169,145.28,145.21,1.721]
[1641757608119,0.04,145.28,145.21,1.721]
[1641757608320,0.04,145.28,145.21,12.0478]
[1641757608521,0.04,145.28,145.22,0.25]
[1641757608720,0.04,145.28,145.23,1.721]
[1641757609622,0.04,145.28,145.23,3.50182586]
[1641757609823,0.04,145.28,145.24,0.25]
[1641757610625,0.04,145.28,145.23,1.721]
[1641757611224,1.721,145.27,145.19,1.78082586]
[1641757611427,0.04,145.28,145.17,0.02688985]
[1641757611626,10.331,145.25,145.18,11.661]
[1641757612026,35.1575327,145.25,145.18,11.661]
[1641757612326,35.1575327,145.25,145.18,1.721]
[1641757612925,35.1575327,145.25,145.21,0.02688245]
[1641757613328,35.1575327,145.25,145.21,0.05498933]
[1641757613931,35.1575327,145.25,145.21,0.02810688]
[1641757614529,35.1575327,145.25,145.16,0.25]
[1641757614829,35.1575327,145.25,145.21,0.02688245]
[1641757615432,35.1575327,145.25,145.21,0.05498933]
[1641757616034,35.1575327,145.25,145.21,0.02810688]
[1641757616534,35.1575327,145.25,145.15,1.721]
[1641757616732,35.1575327,145.25,145.14,26.5742]
[1641757616934,35.1575327,145.25,145.15,0.25]
[1641757617136,36.8785327,145.25,145.21,0.02688245]
[1641757617533,36.8785327,145.25,145.21,0.05498933]
[1641757617735,36.9185327,145.25,145.21,0.05498933]
[1641757618138,36.9185327,145.25,145.21,0.02810688]
[1641757618734,36.9185327,145.25,145.14,18.92473869]
[1641757619135,36.9185327,145.25,145.21,0.02688245]
[1641757619362,35.1975327,145.25,145.21,0.02688245]
[1641757619566,35.1975327,145.25,145.21,0.05498933]
[1641757620164,10.371,145.25,145.21,0.05498933]
[1641757620366,0.04,145.25,145.21,0.02810688]
[1641757621365,0.08,145.25,145.21,0.02810688]
[1641757621865,0.08,145.25,145.21,0.05498933]
[1641757622065,0.08,145.25,145.21,1.77598933]
[1641757622265,0.08,145.25,145.21,1.83581519]
[1641757622464,0.08,145.25,145.21,0.05498933]
[1641757622866,0.08,145.25,145.21,3.52993274]
[1641757623066,0.08,145.25,145.21,13.82892586]
[1641757623270,0.08,145.25,145.22,0.25]
[1641757623473,0.08,145.25,145.23,4.75319995]
[1641757623668,0.08,145.25,145.23,28.33010415]
[1641757624370,0.08,145.25,145.23,4.75319995]
[1641757624769,0.08,145.25,145.23,3.03219995]
[1641757629578,0.08,145.25,145.19,1.721]
[1641757629779,28.99273701,145.23,145.17,1.84795459]
[1641757629979,28.99273701,145.23,145.21,0.02810688]
[1641757630178,28.99273701,145.23,145.21,0.05498933]
[1641757630377,1.721,145.24,145.21,0.05498933]
[1641757630577,0.08,145.25,145.21,0.05498933]
[1641757631083,0.08,145.25,145.18,10.3293]
[1641757631580,0.08,145.25,145.18,13.83112586]
[1641757631777,0.08,145.25,145.19,0.25]
[1641757631980,0.08,145.25,145.21,0.02810688]
[1641757632179,0.08,145.25,145.21,0.05498933]
[1641757633080,0.08,145.25,145.21,0.02688245]
[1641757633279,0.08,145.25,145.19,1.971]
[1641757633479,75.8227,145.26,145.19,1.971]
[1641757633682,75.8227,145.26,145.19,1.721]
[1641757634180,75.8227,145.26,145.21,0.02688245]
[1641757635383,75.8227,145.26,145.19,0.25]
[1641757635585,75.8227,145.26,145.21,0.02810688]
[1641757635986,1.721,145.25,145.21,0.02810688]
[1641757636187,7.214,145.25,145.21,0.02810688]
[1641757636385,7.214,145.25,145.21,0.05498933]
[1641757636584,7.214,145.25,145.21,0.02688245]
[1641757636787,23.22162649,145.24,145.21,0.02688245]
[1641757636985,13.36359896,145.23,145.21,0.02688245]
[1641757637386,13.36359896,145.23,145.13,3.56895459]
[1641757637585,13.36359896,145.23,145.21,0.02810688]
[1641757638584,13.36359896,145.23,145.21,0.05498933]
[1641757638787,13.36359896,145.23,145.21,0.02688245]
[1641757639385,66.721,145.22,145.21,0.02688245]
[1641757639684,75.3342,145.22,145.12,23.0998]
[1641757639885,26.90209307,145.21,145.12,45.98712438]
[1641757640086,1.721,145.24,145.13,2.03082586]
[1641757640287,13.60663032,145.25,145.13,2.03082586]
[1641757640488,3.0,145.24,145.14,1.78082586]
[1641757640687,3.59614963,145.23,145.21,0.02688245]
[1641757640888,3.03059896,145.23,145.21,0.02688245]
[1641757641789,3.03059896,145.23,145.15,27.66707585]
[1641757641990,3.03059896,145.23,145.15,37.99837585]
[1641757642190,3.03059896,145.23,145.15,12.36212586]
[1641757642391,3.03059896,145.23,145.15,1.78082586]
[1641757642590,1.721,145.22,145.13,1.84795459]
[1641757642791,4.721,145.22,145.13,1.84795459]
[1641757642991,10.3349,145.2,145.15,0.02689356]
[1641757643993,10.3349,145.2,145.11,24.9048]
[1641757644194,16.1389,145.2,145.15,0.02810688]
[1641757644396,93.8769,145.2,145.15,0.02810688]
[1641757644996,93.8769,145.2,145.15,0.05500044]
[1641757645202,93.8769,145.2,145.15,0.02689356]
[1641757646021,93.8769,145.2,145.15,0.0281185]
[1641757646624,103.8169,145.2,145.15,0.0281185]
[1641757646824,25.5789,145.2,145.15,0.0281185]
[1641757647024,25.5789,145.2,145.15,0.02689356]
[1641757648024,25.5789,145.2,145.15,0.05501206]
[1641757648225,25.5789,145.2,145.15,0.0281185]
[1641757649027,25.5789,145.2,145.15,0.05501206]
[1641757649229,19.7749,145.2,145.15,0.02689356]
[1641757650028,19.7749,145.2,145.15,0.05501206]
[1641757650226,19.7749,145.2,145.15,0.0281185]
[1641757651127,19.7749,145.2,145.15,0.02689356]
[1641757652129,19.8149,145.2,145.15,0.05501206]
[1641757652329,19.8149,145.2,145.15,0.0281185]
[1641757652731,0.04,145.2,145.15,0.0281185]
[1641757653129,0.04,145.2,145.15,0.02689356]
[1641757654137,0.04,145.2,145.15,0.05501206]
[1641757654332,0.04,145.2,145.15,0.0281185]
[1641757655134,0.04,145.2,145.15,0.05501206]
[1641757655335,0.04,145.2,145.15,0.02689356]
[1641757655934,10.3751,145.2,145.15,0.02689356]
[1641757656335,10.3751,145.2,145.15,0.0281185]
[1641757656738,0.04,145.2,145.15,0.0281185]
[1641757657234,0.04,145.2,145.13,10.3329]
[1641757657435,0.04,145.2,145.15,0.02689356]
[1641757658237,22.71444973,145.18,145.15,0.05501206]
[1641757658436,4.75259896,145.17,145.15,0.0281185]
[1641757658639,74.0,145.16,145.1,0.87807309]
[1641757658840,74.0,145.16,145.06,3.83229833]
[1641757658841,1.722,145.15,145.06,0.87807309]
[1641757659042,28.18046847,145.15,145.06,0.87807309]
[1641757659443,28.18046847,145.15,145.05,31.25171964]
[1641757659644,10.3393,145.14,145.05,31.25171964]
[1641757659842,10.3393,145.14,145.05,29.52971964]
[1641757660041,10.3393,145.14,145.03,1.723]
[1641757660242,34.7315,145.14,145.03,1.723]
[1641757660743,34.7315,145.14,145.04,10.3393]
[1641757660943,34.7315,145.14,145.04,10.5893]
[1641757661143,34.7315,145.14,145.04,42.02927844]
[1641757661544,24.3922,145.14,145.04,42.02927844]
[1641757661944,24.3922,145.14,145.05,1.723]
[1641757662146,24.3922,145.14,145.05,12.061]
[1641757662344,24.3922,145.14,145.06,0.25]
[1641757662545,24.3922,145.14,145.07,1.722]
[1641757662746,24.3922,145.14,145.08,18.86442179]
[1641757662945,10.3387,145.16,145.08,19.11442179]
[1641757666173,107.2254,145.17,145.08,19.11442179]
[1641757667174,117.563,145.17,145.06,1.722]
[1641757667375,1.722,145.16,145.04,12.0609]
[1641757667576,0.04,145.14,145.04,10.3389]
[1641757667774,1.723,145.13,145.03,5.60977356]
[1641757667979,0.04,145.14,145.03,5.58288]
[1641757668182,0.04,145.14,145.04,28.06615872]
[1641757668579,1.763,145.16,145.08,0.02690653]
[1641757668776,10.3398,145.14,145.08,0.02690653]
[1641757669777,10.3398,145.14,145.08,0.02857182]
[1641757670578,1.722,145.13,145.08,0.02857182]
[1641757670881,10.3408,145.13,145.08,0.02690653]
[1641757671078,27.27619806,145.12,145.08,0.02690653]
[1641757671280,1.722,145.11,145.08,0.02690653]
[1641757671479,3.03059896,145.1,145.08,0.02690653]
[1641757671680,3.03059896,145.1,145.08,0.05547835]
[1641757671681,13.37349896,145.1,145.08,0.05547835]
[1641757672181,13.37349896,145.1,145.08,0.02857182]
[1641757672881,13.37349896,145.1,145.03,1.722]
[1641757673080,13.37349896,145.1,145.08,0.02690653]
[1641757673280,13.37349896,145.1,145.08,0.00690653]
[1641757673780,13.37349896,145.1,144.99,22.5662]
[1641757673781,1.723,145.09,144.99,22.5662]
[1641757674181,10.3454,145.06,144.99,22.5662]
[1641757674382,36.79552734,145.06,144.97,25.7219]
[1641757675384,36.79552734,145.06,144.97,23.9989]
[1641757675986,36.79552734,145.06,144.95,1.723]
[1641757676284,76.5629,145.05,144.95,1.723]
[1641757676484,1.724,145.04,144.94,93.3]
[1641757676685,1.724,145.04,144.93,41.11634909]
[1641757677086,9.94,145.03,144.93,1.724]
[1641757677283,10.3498,145.0,144.91,1.724]
[1641757677486,10.3498,145.0,144.93,3.0]
[1641757678086,10.3498,145.0,144.92,25.42790581]
[1641757678286,33.8006,145.02,144.92,25.42790581]
[1641757678486,33.8006,145.02,144.93,1.724]
[1641757678986,23.4521,145.02,144.93,1.724]
[1641757679187,23.4521,145.02,144.93,3.50482586]
[1641757679388,23.4521,145.02,144.94,0.25]
[1641757679589,23.4521,145.02,144.95,1.724]
[1641757679787,23.4521,145.02,144.94,1.974]
[1641757680389,45.0,145.01,144.91,24.7928]
[1641757680588,45.0,145.01,144.9,23.0659]
[1641757681190,1.724,145.0,144.9,23.0659]
[1641757681388,24.21814125,144.99,144.9,23.0659]
[1641757681589,36.29254125,144.99,144.9,23.0659]
[1641757682287,36.29254125,144.99,144.89,23.0159]
[1641757682890,10.6012,144.98,144.89,23.0159]
[1641757686094,10.6012,144.98,144.87,1.724]
[1641757686295,30.542264,144.96,144.87,1.724]
[1641757686496,40.894864,144.96,144.87,1.724]
[1641757687095,30.542264,144.96,144.87,12.0755]
[1641757687294,25.6401,144.97,144.87,12.0755]
[1641757687496,25.6401,144.97,144.8,7.39589833]
[1641757687497,7.6,144.81,144.8,7.39589833]
[1641757687698,10.63059896,144.81,144.8,3.83229833]
[1641757687894,13.63059896,144.81,144.8,3.83229833]
[1641757688096,13.63059896,144.81,144.74,618.51309319]
[1641757688298,1.796,144.8,144.74,618.51309319]
[1641757688496,10.4334,144.8,144.73,346.9450725]
[1641757688699,0.07,144.8,144.73,346.9450725]
[1641757688899,0.07,144.8,144.74,1.726]
[1641757690099,0.07,144.8,144.71,1.726]
[1641757690302,0.32,144.8,144.71,4.726]
[1641757690901,10.6829,144.8,144.71,4.726]
[1641757691799,24.34372247,144.79,144.71,4.726]
[1641757692400,34.70732247,144.79,144.71,4.726]
[1641757692803,7.6,144.81,144.71,14.5889]
[1641757693001,77.631,144.82,144.71,14.5889]
[1641757693700,10.3636,144.79,144.7,1.726]
[1641757693902,10.3636,144.79,144.7,1.976]
[1641757694607,28.5677646,144.78,144.7,1.976]
[1641757694808,28.5677646,144.78,144.71,10.3629]
[1641757695206,0.25,144.78,144.72,3.0]
[1641757696107,1.726,144.81,144.72,13.3622]
[1641757696307,1.726,144.81,144.73,12.38092739]
[1641757696506,9.94,144.83,144.73,15.38092739]
[1641757696911,9.94,144.83,144.73,15.12092739]
[1641757697109,9.94,144.83,144.73,14.87092739]
[1641757697309,20.3007,144.83,144.73,13.361]
[1641757697512,0.25,144.82,144.73,13.361]
[1641757698133,10.6117,144.82,144.73,13.361]
[1641757698335,31.48980459,144.81,144.73,13.361]
[1641757698937,31.48980459,144.81,144.74,1.726]
[1641757699138,31.48980459,144.81,144.74,12.3464]
[1641757699338,9.94,144.83,144.75,0.25]
[1641757700336,41.51497306,144.86,144.75,38.85481836]
[1641757700539,31.15587306,144.86,144.76,3.0]
[1641757700738,31.15587306,144.86,144.77,1.726]
[1641757700940,31.15587306,144.86,144.77,3.75682586]
[1641757701138,31.15587306,144.86,144.78,0.26]
[1641757701337,10.358,144.88,144.78,12.39862586]
[1641757701638,79.4707,144.89,144.79,1.78082586]
[1641757701840,77.7447,144.89,144.79,2.03082586]
[1641757702238,77.7447,144.89,144.8,1.78082586]
[1641757702440,118.7922772,144.89,144.8,12.13722586]
[1641757702839,0.25,144.88,144.8,12.13722586]
[1641757703042,0.25,144.88,144.81,28.49481836]
[1641757703240,1.726,144.92,144.81,28.49481836]
[1641757703441,9.94,144.94,144.82,2.04082586]
[1641757703640,9.94,144.94,144.85,10.3528]
[1641757704045,23.07340272,144.93,144.85,10.3528]
[1641757705340,73.874,144.95,144.85,10.3528]
[1641757705543,73.874,144.95,144.86,0.51]
[1641757705942,73.874,144.95,144.87,1.78082586]
[1641757706149,73.874,144.95,144.86,3.51]
[1641757706347,11.665,144.98,144.86,3.0]
[1641757706546,11.665,144.98,144.87,0.25]
[1641757706746,1.725,145.01,144.87,10.45]
[1641757706948,1.724,145.02,144.88,3.50482586]
[1641757707149,10.348,145.02,144.89,0.07]
[1641757707347,1.724,145.02,144.9,1.724]
[1641757707546,1.724,145.02,144.9,8.893]
[1641757707547,30.16263436,145.02,144.9,8.893]
[1641757707746,30.16263436,145.02,144.91,0.51]
[1641757708048,40.50993436,145.02,144.92,12.0713]
[1641757708248,42.23393436,145.02,144.92,10.3473]
[1641757708846,0.25,145.01,144.92,10.3473]
[1641757709047,1.724,145.0,144.91,1.78082586]
[1641757709249,23.91115114,144.99,144.9,1.724]
[1641757709450,23.91115114,144.99,144.91,3.0]
[1641757710749,23.91115114,144.99,144.91,13.3484]
[1641757710953,23.91115114,144.99,144.91,10.3484]
[1641757711155,23.91115114,144.99,144.9,1.724]
[1641757711351,23.91115114,144.99,144.89,1.78082586]
[1641757711352,23.91115114,144.99,144.88,24.9088]
[1641757711553,23.91115114,144.99,144.9,0.25]
[1641757711756,23.91115114,144.99,144.88,24.9088]
[1641757711952,34.26055114,144.99,144.88,23.1848]
[1641757712452,44.20055114,144.99,144.88,23.1848]
[1641757713057,1.724,144.98,144.88,23.1848]
[1641757713255,36.2336,144.98,144.88,23.1848]
[1641757713455,36.2336,144.98,144.86,1.78082586]
[1641757713655,36.2336,144.98,144.87,0.25]
[1641757713857,36.2336,144.98,144.86,1.78082586]
[1641757714856,0.25,144.97,144.86,1.78082586]
[1641757715757,10.3526,144.95,144.86,12.13282586]
[1641757715958,26.72070879,144.94,144.87,0.25]
[1641757718492,34.4579,144.97,144.87,0.25]
[1641757718690,10.6016,144.97,144.87,10.6014]
[1641757718893,1.724,144.98,144.87,19.89522586]
[1641757719090,11.665,145.01,144.88,3.0]
[1641757719289,9.94,145.01,144.88,37.4933]
[1641757719489,127.85492718,145.02,144.89,26.01169912]
[1641757719890,127.85492718,145.02,144.94,10.3463]
[1641757720090,79.1319,145.02,144.94,10.3463]
[1641757720290,79.1319,145.02,144.95,1.974]
[1641757720490,86.7667,145.05,144.95,9.869]
[1641757720693,88.4907,145.05,144.95,9.92582586]
[1641757720890,98.8365,145.05,144.95,9.92582586]
[1641757721491,98.8365,145.05,144.96,23.72087326]
[1641757721691,97.1825,145.05,144.93,1.78082586]
[1641757721993,98.9065,145.05,144.95,10.3458]
[1641757722193,98.9065,145.05,144.94,1.724]
[1641757722592,10.3467,145.03,144.94,3.50482586]
[1641757722994,10.3467,145.03,144.94,1.724]
[1641757723198,1.724,145.02,144.91,26.05672586]
[1641757723394,1.724,145.02,144.92,0.25]
[1641757723797,10.3488,145.0,144.92,0.25]
[1641757725917,10.3488,145.0,144.89,12.0737]
[1641757726115,10.3518,144.96,144.89,1.724]
[1641757726313,10.3518,144.96,144.87,1.725]
[1641757726920,30.17995451,144.95,144.87,1.725]
[1641757727315,30.17995451,144.95,144.88,0.25]
[1641757728943,30.17995451,144.95,144.87,1.725]
[1641757729142,1.725,144.94,144.84,93.3]
[1641757729342,11.665,144.94,144.84,93.3]
[1641757729542,11.665,144.94,144.82,3.83229833]
[1641757729944,3.0,144.93,144.79,28.84278355]
[1641757730152,10.3558,144.91,144.79,28.84278355]
[1641757730345,26.69061378,144.92,144.8,0.25]
[1641757730545,26.69061378,144.92,144.81,1.725]
[1641757730949,0.25,144.91,144.82,0.25]
[1641757731147,0.25,144.91,144.82,12.53854254]
[1641757731346,0.25,144.91,144.83,10.3544]
[1641757731548,0.25,144.91,144.83,12.0794]
[1641757731848,79.4249,144.93,144.83,12.0794]
[1641757732048,0.25,144.92,144.83,12.0794]
[1641757733856,10.6046,144.92,144.83,12.0794]
[1641757734351,29.949172,144.91,144.83,12.0794]
[1641757735554,29.949172,144.91,144.83,10.3544]
[1641757736253,40.304472,144.91,144.82,0.25]
[1641757737958,29.949172,144.91,144.82,10.6051]
[1641757738359,0.25,144.9,144.82,10.6051]
[1641757739257,0.25,144.9,144.82,0.25]
[1641757740060,0.25,144.9,144.88,0.02]
[1641757740261,33.03059896,144.89,144.88,0.02]
[1641757741065,33.03059896,144.89,144.83,0.02]
[1641757741464,24.88861447,144.88,144.83,0.02]
[1641757741866,0.25,144.87,144.83,0.02]
[1641757742068,1.725,144.86,144.83,0.02]
[1641757742669,29.30972521,144.85,144.83,0.02]
[1641757743670,29.30972521,144.85,144.75,1.725]
[1641757743870,58.39762521,144.85,144.75,1.725]
[1641757744270,3.0,144.84,144.75,1.725]
[1641757744470,14.666,144.84,144.73,5.55829833]
[1641757744670,14.666,144.84,144.73,3.83229833]
[1641757745071,14.666,144.84,144.71,5.55829833]
[1641757745276,14.666,144.84,144.72,3.25]
[1641757745472,14.666,144.84,144.73,1.726]
[1641757745879,11.666,144.84,144.74,0.25]
[1641757746076,9.94,144.84,144.74,0.25]
[1641757746479,9.94,144.84,144.83,0.02]
[1641757746678,23.33129896,144.84,144.83,0.02]
[1641757746897,23.58129896,144.84,144.83,0.02]
[1641757747198,55.58129896,144.84,144.83,0.02]
[1641757747397,55.58129896,144.84,144.83,0.04669751]
[1641757748601,55.65129896,144.84,144.83,0.00669751]
[1641757748800,60.37729896,144.84,144.83,0.00669751]
[1641757748998,102.37729896,144.84,144.83,0.00669751]
[1641757749198,10.3647,144.78,144.69,3.83229833]
[1641757749406,10.3647,144.78,144.7,1.727]
[1641757749604,10.3647,144.78,144.7,3.0]
[1641757750000,10.3647,144.78,144.69,3.0]
[1641757750201,10.3647,144.78,144.69,4.727]
[1641757751303,88.6249,144.8,144.69,4.727]
[1641757751501,86.8979,144.8,144.69,4.727]
[1641757751701,76.5343,144.8,144.69,4.727]
[1641757751905,76.5343,144.8,144.7,0.58]
[1641757752105,76.5343,144.8,144.73,8.18496472]
[1641757752304,76.5343,144.8,144.73,9.91096472]
[1641757752503,76.5343,144.8,144.73,1.726]
[1641757753505,76.5343,144.8,144.69,4.78082586]
[1641757753506,76.5343,144.8,144.7,1.726]
[1641757753706,76.5343,144.8,144.73,30.81684409]
[1641757754008,22.5157,144.82,144.73,32.59766995]
[1641757754209,22.5157,144.82,144.73,42.95896995]
[1641757754404,9.94,144.83,144.74,0.51]
[1641757754606,74.0173,144.84,144.75,1.726]
[1641757754806,74.0173,144.84,144.75,3.50682586]
[1641757755007,74.0173,144.84,144.76,0.25]
[1641757755207,74.0173,144.84,144.76,12.39012586]
[1641757756007,74.0173,144.84,144.76,12.14012586]
[1641757756208,84.3778,144.84,144.75,1.726]
[1641757756407,84.3778,144.84,144.73,22.575]
[1641757756609,1.726,144.83,144.74,3.0]
[1641757756807,75.7433,144.84,144.74,1.976]
[1641757757008,74.0173,144.84,144.74,1.976]
[1641757757208,0.25,144.83,144.74,28.77525565]
[1641757757409,0.25,144.83,144.74,37.40995565]
[1641757758811,0.25,144.83,144.74,37.15995565]
[1641757759418,0.04,144.78,144.75,0.26]
[1641757759614,0.04,144.78,144.76,1.726]
[1641757759615,0.08,144.78,144.76,1.726]
[1641757759813,0.08,144.78,144.77,59.3585]
[1641757760019,0.08,144.78,144.77,10.3585]
[1641757760214,0.08,144.78,144.76,4.81302581]
[1641757760515,0.04,144.78,144.76,4.81302581]
[1641757760815,23.02404546,144.83,144.76,4.81302581]
[1641757761720,23.02404546,144.83,144.76,3.03219995]
[1641757765420,35.11164546,144.83,144.76,3.03219995]
[1641757766525,35.11164546,144.83,144.76,3.05891451]
[1641757766826,10.6125,144.82,144.76,3.05891451]
[1641757767023,1.726,144.81,144.76,3.05891451]
[1641757767226,28.53800152,144.8,144.76,0.02671456]
[1641757767627,28.53800152,144.8,144.72,10.3616]
[1641757768625,28.53800152,144.8,144.76,0.02671456]
[1641757769626,28.53800152,144.8,144.72,10.3616]
[1641757770628,28.53800152,144.8,144.76,0.02671456]
[1641757770827,28.57800152,144.8,144.76,0.02671456]
[1641757772032,28.57800152,144.8,144.73,1.726]
[1641757772229,28.57800152,144.8,144.72,12.0876]
[1641757772632,28.57800152,144.8,144.76,0.02671456]
[1641757772930,28.61800152,144.8,144.76,0.02671456]
[1641757773830,28.61800152,144.8,144.73,0.25]
[1641757774830,28.69800152,144.8,144.76,0.02671456]
[1641757775830,28.69800152,144.8,144.73,0.25]
[1641757776832,28.69800152,144.8,144.76,0.02671456]
[1641757778036,28.69800152,144.8,144.73,0.25]
[1641757778234,28.69800152,144.8,144.73,1.976]
[1641757778636,28.69800152,144.8,144.73,1.726]
[1641757778834,28.69800152,144.8,144.76,0.02671456]
[1641757779033,0.25,144.79,144.76,0.02671456]
[1641757779236,3.03059896,144.78,144.76,0.02671456]
[1641757780034,3.03059896,144.78,144.74,1.95637017]
[1641757780236,27.43862967,144.77,144.74,1.95637017]
[1641757780534,3.03059896,144.76,144.74,1.95637017]
[1641757781736,3.03059896,144.76,144.72,1.95637017]
[1641757782536,3.03059896,144.76,144.71,1.95637017]
[1641757783938,3.03059896,144.76,144.7,1.95637017]
[1641757785136,3.03059896,144.76,144.7,12.33987017]
[1641757785336,3.03059896,144.76,144.71,2.20637017]
[1641757785535,0.16,144.8,144.72,1.727]
[1641757785735,0.16,144.8,144.71,29.1313474]
[1641757785736,0.16,144.8,144.71,30.8573474]
[1641757785938,0.08,144.8,144.71,3.93237017]
[1641757786135,0.04,144.8,144.73,1.95637017]
[1641757786536,0.29,144.8,144.73,1.95637017]
[1641757786737,0.04,144.76,144.73,1.95637017]
[1641757786936,0.04,144.76,144.74,3.03219995]
[1641757788038,0.25,144.8,144.74,3.03219995]
[1641757789439,10.6141,144.8,144.74,3.03219995]
[1641757789639,12.3401,144.8,144.74,3.03219995]
[1641757789841,0.08,144.76,144.74,3.03219995]
[1641757790540,0.08,144.76,144.74,3.07891451]
[1641757790743,0.08,144.76,144.75,73.78082586]
[1641757790940,0.08,144.8,144.75,6.50782586]
[1641757791140,0.08,144.8,144.75,1.727]
[1641757791841,27.76365796,144.8,144.74,2.02308473]
[1641757793944,0.08,144.8,144.75,0.25]
[1641757794543,0.08,144.8,144.74,3.74908473]
[1641757794744,0.08,144.8,144.75,1.95637017]
[1641757795352,0.08,144.8,144.74,2.02308473]
[1641757799077,0.08,144.8,144.75,0.25]
[1641757799278,0.08,144.8,144.76,1.726]
[1641757799479,0.08,144.8,144.77,0.25]
[1641757799678,0.08,144.8,144.78,4.75819995]
[1641757799880,0.08,144.8,144.79,38.25]
[1641757800084,0.08,144.8,144.79,38.0]
[1641757800980,0.08,144.8,144.78,13.38999995]
[1641757801183,0.08,144.8,144.78,3.03219995]
[1641757801982,0.08,144.8,144.78,4.75819995]
[1641757802182,74.28178574,144.89,144.78,15.11609995]
[1641757802383,74.28178574,144.89,144.79,3.51]
[1641757802586,74.28178574,144.89,144.8,1.726]
[1641757802789,74.28178574,144.89,144.8,1.78082586]
[1641757802790,25.36623271,144.88,144.8,1.78082586]
[1641757802985,1.726,144.87,144.76,1.95637017]
[1641757803185,24.2884748,144.83,144.76,1.95637017]
[1641757803385,24.2884748,144.83,144.79,1.95637017]
[1641757804186,24.2884748,144.83,144.76,1.95637017]
[1641757804885,24.2884748,144.83,144.77,3.0]
[1641757805191,1.726,144.87,144.77,3.25]
[1641757805487,99.05758574,144.89,144.79,10.3569]
[1641757805786,97.3195,144.89,144.8,1.726]
[1641757805986,26.22361829,144.88,144.8,4.726]
[1641757806191,26.22361829,144.88,144.8,3.0]
[1641757806788,0.25,144.87,144.8,3.0]
[1641757807389,0.25,144.87,144.78,3.0]
[1641757807588,0.25,144.87,144.78,3.25]
[1641757808196,0.25,144.87,144.78,13.6079]
[1641757808595,10.6088,144.87,144.78,1.976]
[1641757808791,13.6088,144.87,144.78,1.726]
[1641757809393,15.3348,144.87,144.76,1.95637017]
[1641757809592,38.7739,144.87,144.77,0.25]
[1641757809995,38.7739,144.87,144.75,28.23367017]
[1641757810192,38.8439,144.87,144.75,26.50767017]
[1641757810596,9.94,144.86,144.75,26.50767017]
[1641757810794,10.3619,144.83,144.75,26.50767017]
[1641757810993,24.6983,144.85,144.75,26.50767017]